fUST/lending_fUST_20260522
["ID","MTS","AMOUNT","RATE_DAILY","PERIOD"]
[422798852,1779412243000,-150.36979857,8.978e-05,2]
[422798859,1779412243000,-500.0,9.109e-05,2]
[422798854,1779412243000,-500.0,9.109e-05,2]
[422798860,1779412243000,-500.0,9.109e-05,2]
[422798851,1779412243000,-215.8,8.839e-05,2]
[422798862,1779412243000,-500.0,9.109e-05,2]
[422798857,1779412243000,-500.0,9.109e-05,2]
[422798856,1779412243000,-500.0,9.109e-05,2]
[422798858,1779412243000,-500.0,9.109e-05,2]
[422798864,1779412243000,-410.02,9.109e-05,2]
[422798874,1779412243000,-420.0,9.115e-05,2]
[422798876,1779412243000,-150.36979857,9.208e-05,2]
[422798872,1779412243000,-648.68,9.111e-05,2]
[422798902,1779412243000,-500.0,9.657e-05,2]
[422798900,1779412243000,-176.68,9.657e-05,2]
[422798893,1779412243000,-537.6845,9.55e-05,2]
[422798938,1779412243000,-253.0,0.00010959,3]
[422798927,1779412243000,-500.0,0.00010479,2]
[422798931,1779412243000,-1413.0,0.00010724,2]
[422798939,1779412243000,-8029.12258558,0.00010959,2]
[422798929,1779412243000,-500.0,0.00010479,2]
[422798932,1779412243000,-2203.0,0.00010724,2]
[422798933,1779412243000,-443.0,0.00010724,2]
[422798937,1779412243000,-588.18,0.00010753,2]
[422798934,1779412243000,-185.0,0.00010724,2]
[422798936,1779412243000,-550.99,0.00010753,2]
[422798935,1779412243000,-500.0,0.00010753,2]
[422798940,1779412243000,-1502.03326942,0.00010959,2]
[422798941,1779412243000,-123.9053948,0.00010959,2]
[422798942,1779412243000,-131.4346052,0.00010959,2]
[422798943,1779412243000,-500.0,0.00011027,2]
[422798950,1779412243000,-445.5261703,0.00011906,2]
[422798905,1779412243000,-354.91,9.658e-05,2]
[422798946,1779412243000,-529.55,0.00011301,2]
[422798944,1779412243000,-255.34,0.00011233,2]
[422798947,1779412243000,-255.34,0.00011507,2]
[422798953,1779412243000,-255.34,0.00012329,2]
[422798949,1779412243000,-2000.0,0.000118,2]
[422798948,1779412243000,-255.34,0.00011781,2]
[422798952,1779412243000,-255.34,0.00012055,2]
[422798951,1779412243000,-235.0,0.00012055,3]
[422798930,1779412243000,-645.0,0.00010724,2]
[422798928,1779412243000,-500.0,0.00010479,2]
[422798945,1779412243000,-1000.0,0.00011255,2]
[422798920,1779412243000,-766.48970852,0.00010144,2]
[422798923,1779412243000,-500.0,0.00010205,2]
[422798895,1779412243000,-557.5788265,9.605e-05,2]
[422798899,1779412243000,-500.0,9.657e-05,2]
[422798896,1779412243000,-500.0,9.657e-05,2]
[422798901,1779412243000,-500.0,9.657e-05,2]
[422798897,1779412243000,-500.0,9.657e-05,2]
[422798891,1779412243000,-258.175459,9.403e-05,2]
[422798906,1779412243000,-578.20924308,9.66e-05,2]
[422798909,1779412243000,-621.78829552,9.77e-05,2]
[422798911,1779412243000,-668.65185763,9.88e-05,2]
[422798908,1779412243000,-258.175459,9.742e-05,2]
[422798910,1779412243000,-644.79446245,9.825e-05,2]
[422798907,1779412243000,-599.60298507,9.715e-05,2]
[422798912,1779412243000,-386.55947129,9.906e-05,2]
[422798924,1779412243000,-500.0,0.00010205,2]
[422798913,1779412243000,-500.0,9.931e-05,2]
[422798926,1779412243000,-864.0,0.00010232,2]
[422798921,1779412243000,-160.0,0.00010144,2]
[422798925,1779412243000,-500.0,0.00010205,2]
[422798915,1779412243000,-500.0,9.931e-05,2]
[422798922,1779412243000,-160.0,0.00010144,2]
[422798917,1779412243000,-376.48957743,9.931e-05,2]
[422798918,1779412243000,-159.31,9.932e-05,2]
[422798916,1779412243000,-306.31,9.931e-05,2]
[422798914,1779412243000,-500.0,9.931e-05,2]
[422798919,1779412243000,-161.7158655,0.00010144,2]
[422798956,1779412244000,-255.34,0.00012603,2]
[422798965,1779412244000,-152.0,0.00013558,30]
[422798955,1779412244000,-244.0,0.0001238,2]
[422798959,1779412244000,-1883.58323081,0.000128,3]
[422798964,1779412244000,-152.0,0.00013443,2]
[422798960,1779412244000,-255.34,0.00012877,2]
[422798958,1779412244000,-116.41676919,0.000128,3]
[422798957,1779412244000,-229.83432848,0.00012637,2]
[422798954,1779412244000,-1000.0,0.0001238,2]
[422798963,1779412244000,-255.34,0.00013425,2]
[422798975,1779412244000,-94.97486216,0.00013724,2]
[422798962,1779412244000,-237.0,0.00013151,3]
[422798961,1779412244000,-255.34,0.00013151,2]
[422798973,1779412244000,-882.02513784,0.00013699,2]
[422798974,1779412244000,-443.0,0.00013724,2]
[422798972,1779412244000,-117.97486216,0.00013699,2]
[422798971,1779412244000,-1000.0,0.00013699,2]
[422798968,1779412244000,-180.01980218,0.00013699,2]
[422798969,1779412244000,-255.34,0.00013699,2]
[422798967,1779412244000,-492.0,0.00013618,2]
[422798966,1779412244000,-1000.0,0.00013618,2]
[422798970,1779412244000,-793.699379,0.00013699,2]
[422798998,1779412247000,-281.434,0.00013916,2]
[422798994,1779412247000,-5369.21041785,0.00013904,2]
[422798995,1779412247000,-7731.6630017,0.00013904,2]
[422798996,1779412247000,-10523.65241898,0.00013904,2]
[422798999,1779412247000,-255.34,0.00013973,2]
[422798997,1779412247000,-504.49286931,0.00013906,2]
[422798993,1779412247000,-3436.29466742,0.00013904,2]
[422799001,1779412247000,-373.7354191,0.00014177,2]
[422798989,1779412247000,-2000.0,0.000138,4]
[422798991,1779412247000,-859.07366686,0.00013904,2]
[422798986,1779412247000,-172.064528,9.116e-05,2]
[422798987,1779412247000,-172.064528,9.116e-05,2]
[422798985,1779412247000,-172.064528,9.116e-05,2]
[422798988,1779412247000,-203.466,0.00012808,2]
[422798992,1779412247000,-1932.91575042,0.00013904,2]
[422798984,1779412247000,-172.064528,9.116e-05,2]
[422798990,1779412247000,-214.76841671,0.00013904,2]
[422799000,1779412247000,-151.0,0.00014177,2]
[422798983,1779412247000,-172.064528,9.116e-05,2]
[422799014,1779412247000,-1868.04212651,0.00014887,3]
[422799003,1779412247000,-255.34,0.00014247,2]
[422799020,1779412247000,-1182.1113404,0.00014944,2]
[422799021,1779412247000,-6036.19365005,0.00014944,2]
[422799019,1779412247000,-3727.3598595,0.00014944,2]
[422799016,1779412247000,-218.80263172,0.000149,2]
[422799017,1779412247000,-218.80263171,0.000149,2]
[422799011,1779412247000,-152.0,0.00014721,7]
[422799008,1779412247000,-152.0,0.00014692,7]
[422799007,1779412247000,-2000.0,0.000146,5]
[422799018,1779412247000,-295.5278351,0.00014944,2]
[422799009,1779412247000,-207.20622802,0.000147,2]
[422799006,1779412247000,-255.34,0.00014521,2]
[422799012,1779412247000,-255.34,0.00014795,2]
[422799010,1779412247000,-161.0,0.000147,10]
[422799015,1779412247000,-7464.69633753,0.00014887,3]
[422799004,1779412247000,-500.0,0.00014249,2]
[422799002,1779412247000,-239.0,0.00014247,3]
[422799013,1779412247000,-200.0,0.00014812,2]
[422799005,1779412247000,-2000.0,0.00014411,7]
[422799050,1779413432000,-720.49265734,7.37e-05,2]
[422799162,1779413438000,-193.631594,8.066e-05,2]
[422799164,1779413438000,-500.0,8.219e-05,2]
[422799163,1779413438000,-529.39989849,8.218e-05,2]
[422799156,1779413438000,-480.0,7.599e-05,2]
[422799159,1779413438000,-312.0273557,7.6e-05,2]
[422799146,1779413438000,-3649.85894809,7.37e-05,2]
[422799151,1779413438000,-501.06964541,7.37e-05,2]
[422799152,1779413438000,-5000.0,7.375e-05,2]
[422799150,1779413438000,-3075.57874916,7.37e-05,2]
[422799169,1779413438000,-1041.0,8.219e-05,2]
[422799153,1779413438000,-300.0,7.599e-05,2]
[422799168,1779413438000,-153.34443758,8.219e-05,2]
[422799161,1779413438000,-5311.1233487,7.6e-05,2]
[422799171,1779413438000,-1041.0,8.219e-05,2]
[422799166,1779413438000,-151.5,8.219e-05,2]
[422799180,1779413438000,-1041.0,8.219e-05,2]
[422799178,1779413438000,-1041.0,8.219e-05,2]
[422799174,1779413438000,-1041.0,8.219e-05,2]
[422799179,1779413438000,-1041.0,8.219e-05,2]
[422799177,1779413438000,-1041.0,8.219e-05,2]
[422799172,1779413438000,-1041.0,8.219e-05,2]
[422799175,1779413438000,-1041.0,8.219e-05,2]
[422799173,1779413438000,-1041.0,8.219e-05,2]
[422799170,1779413438000,-1041.0,8.219e-05,2]
[422799167,1779413438000,-223.34901445,8.219e-05,2]
[422799165,1779413438000,-500.0,8.219e-05,2]
[422799176,1779413438000,-1041.0,8.219e-05,2]
[422799230,1779413439000,-500.0,8.284e-05,2]
[422799225,1779413439000,-500.0,8.284e-05,2]
[422799222,1779413439000,-500.0,8.284e-05,2]
[422799221,1779413439000,-500.0,8.284e-05,2]
[422799218,1779413439000,-500.0,8.284e-05,2]
[422799214,1779413439000,-500.0,8.284e-05,2]
[422799215,1779413439000,-500.0,8.284e-05,2]
[422799219,1779413439000,-500.0,8.284e-05,2]
[422799216,1779413439000,-500.0,8.284e-05,2]
[422799217,1779413439000,-500.0,8.284e-05,2]
[422799226,1779413439000,-500.0,8.284e-05,2]
[422799212,1779413439000,-500.73939949,8.283e-05,2]
[422799220,1779413439000,-500.0,8.284e-05,2]
[422799227,1779413439000,-500.0,8.284e-05,2]
[422799238,1779413439000,-644.42,8.284e-05,2]
[422799231,1779413439000,-500.0,8.284e-05,2]
[422799228,1779413439000,-500.0,8.284e-05,2]
[422799229,1779413439000,-500.92572126,8.284e-05,2]
[422799236,1779413439000,-500.0,8.284e-05,2]
[422799237,1779413439000,-500.0,8.284e-05,2]
[422799232,1779413439000,-500.0,8.284e-05,2]
[422799235,1779413439000,-500.0,8.284e-05,2]
[422799244,1779413439000,-500.0,8.284e-05,2]
[422799241,1779413439000,-500.0,8.284e-05,2]
[422799249,1779413439000,-500.0,8.284e-05,2]
[422799242,1779413439000,-500.0,8.284e-05,2]
[422799240,1779413439000,-500.0,8.284e-05,2]
[422799239,1779413439000,-500.0,8.284e-05,2]
[422799223,1779413439000,-500.0,8.284e-05,2]
[422799233,1779413439000,-500.0,8.284e-05,2]
[422799224,1779413439000,-500.0,8.284e-05,2]
[422799189,1779413439000,-1041.0,8.219e-05,2]
[422799205,1779413439000,-500.0,8.283e-05,2]
[422799182,1779413439000,-1041.0,8.219e-05,2]
[422799181,1779413439000,-1041.0,8.219e-05,2]
[422799184,1779413439000,-1041.0,8.219e-05,2]
[422799183,1779413439000,-1041.0,8.219e-05,2]
[422799185,1779413439000,-1041.0,8.219e-05,2]
[422799186,1779413439000,-1041.0,8.219e-05,2]
[422799193,1779413439000,-307.24122205,8.219e-05,2]
[422799196,1779413439000,-500.0,8.283e-05,2]
[422799187,1779413439000,-1041.0,8.219e-05,2]
[422799243,1779413439000,-500.0,8.284e-05,2]
[422799190,1779413439000,-1041.0,8.219e-05,2]
[422799191,1779413439000,-1041.0,8.219e-05,2]
[422799197,1779413439000,-500.0,8.283e-05,2]
[422799188,1779413439000,-1041.0,8.219e-05,2]
[422799213,1779413439000,-500.0,8.284e-05,2]
[422799192,1779413439000,-1042.07619689,8.219e-05,2]
[422799195,1779413439000,-500.0,8.219e-05,2]
[422799199,1779413439000,-500.0,8.283e-05,2]
[422799200,1779413439000,-500.0,8.283e-05,2]
[422799198,1779413439000,-500.0,8.283e-05,2]
[422799202,1779413439000,-500.0,8.283e-05,2]
[422799209,1779413439000,-500.8704693,8.283e-05,2]
[422799211,1779413439000,-177.56654874,8.283e-05,2]
[422799201,1779413439000,-500.0,8.283e-05,2]
[422799203,1779413439000,-500.0,8.283e-05,2]
[422799204,1779413439000,-500.0,8.283e-05,2]
[422799210,1779413439000,-500.0,8.283e-05,2]
[422799207,1779413439000,-500.0,8.283e-05,2]
[422799208,1779413439000,-500.0,8.283e-05,2]
[422799206,1779413439000,-500.0,8.283e-05,2]
[422799194,1779413439000,-501.44075322,8.219e-05,2]
[422799248,1779413439000,-500.0,8.284e-05,2]
[422799234,1779413439000,-500.0,8.284e-05,2]
[422799246,1779413439000,-500.0,8.284e-05,2]
[422799291,1779413439000,-500.0,8.284e-05,2]
[422799283,1779413439000,-500.12530384,8.284e-05,2]
[422799285,1779413439000,-500.0,8.284e-05,2]
[422799281,1779413439000,-500.0,8.284e-05,2]
[422799290,1779413439000,-500.0,8.284e-05,2]
[422799282,1779413439000,-500.0,8.284e-05,2]
[422799287,1779413439000,-500.0,8.284e-05,2]
[422799284,1779413439000,-500.0,8.284e-05,2]
[422799289,1779413439000,-500.0,8.284e-05,2]
[422799304,1779413439000,-500.0,8.284e-05,2]
[422799299,1779413439000,-500.0,8.284e-05,2]
[422799302,1779413439000,-500.0,8.284e-05,2]
[422799293,1779413439000,-500.0,8.284e-05,2]
[422799296,1779413439000,-500.0,8.284e-05,2]
[422799286,1779413439000,-500.0,8.284e-05,2]
[422799292,1779413439000,-500.0,8.284e-05,2]
[422799294,1779413439000,-500.0,8.284e-05,2]
[422799301,1779413439000,-500.0,8.284e-05,2]
[422799297,1779413439000,-500.0,8.284e-05,2]
[422799298,1779413439000,-500.0,8.284e-05,2]
[422799300,1779413439000,-500.0,8.284e-05,2]
[422799305,1779413439000,-410.02,8.284e-05,2]
[422799306,1779413439000,-500.0,8.284e-05,2]
[422799308,1779413439000,-500.0,8.284e-05,2]
[422799311,1779413439000,-500.0,8.284e-05,2]
[422799307,1779413439000,-4479.2248,8.284e-05,2]
[422799310,1779413439000,-500.0,8.284e-05,2]
[422799312,1779413439000,-500.0,8.284e-05,2]
[422799309,1779413439000,-500.0,8.284e-05,2]
[422799247,1779413439000,-500.0,8.284e-05,2]
[422799295,1779413439000,-500.0,8.284e-05,2]
[422799280,1779413439000,-500.0,8.284e-05,2]
[422799303,1779413439000,-500.0,8.284e-05,2]
[422799279,1779413439000,-500.0,8.284e-05,2]
[422799288,1779413439000,-500.0,8.284e-05,2]
[422799245,1779413439000,-500.0,8.284e-05,2]
[422799250,1779413439000,-500.18556883,8.284e-05,2]
[422799263,1779413439000,-500.0,8.284e-05,2]
[422799254,1779413439000,-6805.246495,8.284e-05,2]
[422799252,1779413439000,-500.0,8.284e-05,2]
[422799258,1779413439000,-500.0,8.284e-05,2]
[422799253,1779413439000,-2789.855994,8.284e-05,2]
[422799256,1779413439000,-161.6973898,8.284e-05,2]
[422799264,1779413439000,-500.0,8.284e-05,2]
[422799261,1779413439000,-532.98909028,8.284e-05,2]
[422799259,1779413439000,-500.0,8.284e-05,2]
[422799255,1779413439000,-500.0,8.284e-05,2]
[422799257,1779413439000,-500.0,8.284e-05,2]
[422799260,1779413439000,-487.29636292,8.284e-05,2]
[422799251,1779413439000,-500.0,8.284e-05,2]
[422799277,1779413439000,-500.0,8.284e-05,2]
[422799262,1779413439000,-500.0,8.284e-05,2]
[422799269,1779413439000,-500.0,8.284e-05,2]
[422799273,1779413439000,-500.0,8.284e-05,2]
[422799278,1779413439000,-500.0,8.284e-05,2]
[422799266,1779413439000,-500.0,8.284e-05,2]
[422799272,1779413439000,-500.0,8.284e-05,2]
[422799271,1779413439000,-500.0,8.284e-05,2]
[422799275,1779413439000,-500.0,8.284e-05,2]
[422799267,1779413439000,-500.0,8.284e-05,2]
[422799276,1779413439000,-500.0,8.284e-05,2]
[422799265,1779413439000,-500.0,8.284e-05,2]
[422799274,1779413439000,-500.0,8.284e-05,2]
[422799268,1779413439000,-500.0,8.284e-05,2]
[422799270,1779413439000,-500.0,8.284e-05,2]
[422799369,1779413440000,-363.23390693,8.285e-05,2]
[422799356,1779413440000,-500.0,8.285e-05,2]
[422799370,1779413440000,-500.0,8.285e-05,2]
[422799367,1779413440000,-500.0,8.285e-05,2]
[422799351,1779413440000,-500.0,8.285e-05,2]
[422799368,1779413440000,-500.0,8.285e-05,2]
[422799352,1779413440000,-500.0,8.285e-05,2]
[422799355,1779413440000,-309.87050738,8.285e-05,2]
[422799354,1779413440000,-500.0,8.285e-05,2]
[422799343,1779413440000,-500.0,8.285e-05,2]
[422799353,1779413440000,-500.0,8.285e-05,2]
[422799359,1779413440000,-500.0,8.285e-05,2]
[422799357,1779413440000,-500.0,8.285e-05,2]
[422799358,1779413440000,-500.0,8.285e-05,2]
[422799371,1779413440000,-500.0,8.285e-05,2]
[422799361,1779413440000,-500.0,8.285e-05,2]
[422799363,1779413440000,-500.0,8.285e-05,2]
[422799360,1779413440000,-500.0,8.285e-05,2]
[422799366,1779413440000,-500.0,8.285e-05,2]
[422799365,1779413440000,-500.0,8.285e-05,2]
[422799364,1779413440000,-500.0,8.285e-05,2]
[422799374,1779413440000,-500.0,8.285e-05,2]
[422799372,1779413440000,-500.0,8.285e-05,2]
[422799382,1779413440000,-500.0,8.285e-05,2]
[422799376,1779413440000,-500.0,8.285e-05,2]
[422799383,1779413440000,-514.18121957,8.285e-05,2]
[422799385,1779413440000,-500.0,8.285e-05,2]
[422799377,1779413440000,-500.0,8.285e-05,2]
[422799348,1779413440000,-500.0,8.285e-05,2]
[422799362,1779413440000,-500.0,8.285e-05,2]
[422799347,1779413440000,-507.80325507,8.285e-05,2]
[422799315,1779413440000,-500.0,8.284e-05,2]
[422799346,1779413440000,-500.0,8.285e-05,2]
[422799313,1779413440000,-500.0,8.284e-05,2]
[422799317,1779413440000,-500.0,8.284e-05,2]
[422799316,1779413440000,-500.0,8.284e-05,2]
[422799314,1779413440000,-500.0,8.284e-05,2]
[422799318,1779413440000,-500.0,8.284e-05,2]
[422799319,1779413440000,-500.0,8.284e-05,2]
[422799321,1779413440000,-500.0,8.284e-05,2]
[422799322,1779413440000,-415.40959912,8.284e-05,2]
[422799320,1779413440000,-500.0,8.284e-05,2]
[422799323,1779413440000,-500.0,8.284e-05,2]
[422799324,1779413440000,-500.0,8.284e-05,2]
[422799326,1779413440000,-500.45881252,8.284e-05,2]
[422799325,1779413440000,-549.94147736,8.284e-05,2]
[422799329,1779413440000,-500.0,8.285e-05,2]
[422799349,1779413440000,-500.0,8.285e-05,2]
[422799337,1779413440000,-500.0,8.285e-05,2]
[422799340,1779413440000,-500.0,8.285e-05,2]
[422799341,1779413440000,-500.0,8.285e-05,2]
[422799339,1779413440000,-500.0,8.285e-05,2]
[422799332,1779413440000,-500.0,8.285e-05,2]
[422799334,1779413440000,-500.0,8.285e-05,2]
[422799336,1779413440000,-500.0,8.285e-05,2]
[422799333,1779413440000,-500.0,8.285e-05,2]
[422799331,1779413440000,-500.0,8.285e-05,2]
[422799335,1779413440000,-500.0,8.285e-05,2]
[422799342,1779413440000,-500.0,8.285e-05,2]
[422799344,1779413440000,-500.0,8.285e-05,2]
[422799345,1779413440000,-500.0,8.285e-05,2]
[422799350,1779413440000,-500.0,8.285e-05,2]
[422799379,1779413440000,-500.23323712,8.285e-05,2]
[422799338,1779413440000,-500.0,8.285e-05,2]
[422799387,1779413440000,-500.0,8.285e-05,2]
[422799438,1779413440000,-500.0,8.285e-05,2]
[422799381,1779413440000,-500.0,8.285e-05,2]
[422799448,1779413440000,-500.0,8.285e-05,2]
[422799440,1779413440000,-500.0,8.285e-05,2]
[422799451,1779413440000,-500.0,8.285e-05,2]
[422799441,1779413440000,-500.0,8.285e-05,2]
[422799453,1779413440000,-535.46741483,8.285e-05,2]
[422799454,1779413440000,-500.0,8.285e-05,2]
[422799445,1779413440000,-500.0,8.285e-05,2]
[422799443,1779413440000,-500.0,8.285e-05,2]
[422799456,1779413440000,-500.0,8.285e-05,2]
[422799458,1779413440000,-500.0,8.285e-05,2]
[422799462,1779413440000,-500.0,8.285e-05,2]
[422799460,1779413440000,-500.0,8.285e-05,2]
[422799464,1779413440000,-500.0,8.285e-05,2]
[422799466,1779413440000,-500.0,8.285e-05,2]
[422799475,1779413440000,-500.0,8.285e-05,2]
[422799479,1779413440000,-500.0,8.285e-05,2]
[422799477,1779413440000,-500.0,8.285e-05,2]
[422799467,1779413440000,-500.0,8.285e-05,2]
[422799471,1779413440000,-500.0,8.285e-05,2]
[422799469,1779413440000,-500.0,8.285e-05,2]
[422799482,1779413440000,-500.0,8.285e-05,2]
[422799481,1779413440000,-500.0,8.285e-05,2]
[422799473,1779413440000,-548.00861986,8.285e-05,2]
[422799486,1779413440000,-500.0,8.285e-05,2]
[422799484,1779413440000,-500.0,8.285e-05,2]
[422799488,1779413440000,-500.0,8.285e-05,2]
[422799497,1779413440000,-500.0,8.285e-05,2]
[422799493,1779413440000,-500.0,8.285e-05,2]
[422799495,1779413440000,-500.0,8.285e-05,2]
[422799447,1779413440000,-500.0,8.285e-05,2]
[422799436,1779413440000,-562.78637355,8.285e-05,2]
[422799386,1779413440000,-500.0,8.285e-05,2]
[422799430,1779413440000,-500.0,8.285e-05,2]
[422799380,1779413440000,-500.0,8.285e-05,2]
[422799378,1779413440000,-500.0,8.285e-05,2]
[422799384,1779413440000,-500.0,8.285e-05,2]
[422799389,1779413440000,-500.0,8.285e-05,2]
[422799388,1779413440000,-500.0,8.285e-05,2]
[422799399,1779413440000,-500.0,8.285e-05,2]
[422799392,1779413440000,-500.0,8.285e-05,2]
[422799390,1779413440000,-518.78200986,8.285e-05,2]
[422799393,1779413440000,-495.13695176,8.285e-05,2]
[422799403,1779413440000,-500.0,8.285e-05,2]
[422799401,1779413440000,-500.12248046,8.285e-05,2]
[422799397,1779413440000,-500.0,8.285e-05,2]
[422799391,1779413440000,-500.0,8.285e-05,2]
[422799395,1779413440000,-500.0,8.285e-05,2]
[422799405,1779413440000,-500.0,8.285e-05,2]
[422799434,1779413440000,-500.0,8.285e-05,2]
[422799394,1779413440000,-500.0,8.285e-05,2]
[422799407,1779413440000,-500.0,8.285e-05,2]
[422799429,1779413440000,-500.0,8.285e-05,2]
[422799427,1779413440000,-500.0,8.285e-05,2]
[422799425,1779413440000,-500.0,8.285e-05,2]
[422799432,1779413440000,-500.0,8.285e-05,2]
[422799420,1779413440000,-500.0,8.285e-05,2]
[422799418,1779413440000,-359.75841121,8.285e-05,2]
[422799423,1779413440000,-500.0,8.285e-05,2]
[422799416,1779413440000,-500.0,8.285e-05,2]
[422799414,1779413440000,-500.0,8.285e-05,2]
[422799412,1779413440000,-500.0,8.285e-05,2]
[422799410,1779413440000,-500.0,8.285e-05,2]
[422799409,1779413440000,-500.0,8.285e-05,2]
[422799421,1779413440000,-500.0,8.285e-05,2]
[422799574,1779413441000,-233.23149283,8.285e-05,2]
[422799576,1779413441000,-500.0,8.285e-05,2]
[422799572,1779413441000,-257.23022723,8.285e-05,2]
[422799575,1779413441000,-209.23328553,8.285e-05,2]
[422799569,1779413441000,-505.45622325,8.285e-05,2]
[422799577,1779413441000,-500.0,8.285e-05,2]
[422799548,1779413441000,-500.0,8.285e-05,2]
[422799564,1779413441000,-500.0,8.285e-05,2]
[422799568,1779413441000,-500.0,8.285e-05,2]
[422799566,1779413441000,-526.27,8.285e-05,2]
[422799567,1779413441000,-500.0,8.285e-05,2]
[422799562,1779413441000,-500.0,8.285e-05,2]
[422799573,1779413441000,-500.0,8.285e-05,2]
[422799565,1779413441000,-502.57,8.285e-05,2]
[422799570,1779413441000,-500.0,8.285e-05,2]
[422799582,1779413441000,-500.0,8.285e-05,2]
[422799585,1779413441000,-286.03,8.285e-05,2]
[422799583,1779413441000,-500.0,8.285e-05,2]
[422799579,1779413441000,-500.0,8.285e-05,2]
[422799589,1779413441000,-500.0,8.285e-05,2]
[422799590,1779413441000,-500.0,8.285e-05,2]
[422799588,1779413441000,-500.0,8.285e-05,2]
[422799581,1779413441000,-500.0,8.285e-05,2]
[422799587,1779413441000,-272.32322489,8.285e-05,2]
[422799580,1779413441000,-500.0,8.285e-05,2]
[422799584,1779413441000,-500.0,8.285e-05,2]
[422799586,1779413441000,-500.0,8.285e-05,2]
[422799599,1779413441000,-500.0,8.285e-05,2]
[422799597,1779413441000,-500.0,8.285e-05,2]
[422799560,1779413441000,-500.0,8.285e-05,2]
[422799578,1779413441000,-500.0,8.285e-05,2]
[422799563,1779413441000,-500.0,8.285e-05,2]
[422799528,1779413441000,-500.0,8.285e-05,2]
[422799546,1779413441000,-500.0,8.285e-05,2]
[422799502,1779413441000,-500.0,8.285e-05,2]
[422799504,1779413441000,-500.0,8.285e-05,2]
[422799508,1779413441000,-500.0,8.285e-05,2]
[422799509,1779413441000,-500.0,8.285e-05,2]
[422799498,1779413441000,-500.0,8.285e-05,2]
[422799506,1779413441000,-500.0,8.285e-05,2]
[422799500,1779413441000,-500.0,8.285e-05,2]
[422799511,1779413441000,-500.0,8.285e-05,2]
[422799513,1779413441000,-500.0,8.285e-05,2]
[422799515,1779413441000,-500.0,8.285e-05,2]
[422799517,1779413441000,-500.0,8.285e-05,2]
[422799522,1779413441000,-500.0,8.285e-05,2]
[422799533,1779413441000,-500.0,8.285e-05,2]
[422799520,1779413441000,-500.0,8.285e-05,2]
[422799543,1779413441000,-500.0,8.285e-05,2]
[422799519,1779413441000,-500.0,8.285e-05,2]
[422799601,1779413441000,-500.0,8.285e-05,2]
[422799524,1779413441000,-553.76718099,8.285e-05,2]
[422799526,1779413441000,-500.0,8.285e-05,2]
[422799537,1779413441000,-500.0,8.285e-05,2]
[422799531,1779413441000,-500.0,8.285e-05,2]
[422799530,1779413441000,-500.0,8.285e-05,2]
[422799539,1779413441000,-198.04,8.285e-05,2]
[422799550,1779413441000,-500.0,8.285e-05,2]
[422799541,1779413441000,-600.0,8.285e-05,2]
[422799554,1779413441000,-500.0,8.285e-05,2]
[422799556,1779413441000,-196.96708736,8.285e-05,2]
[422799552,1779413441000,-562.72,8.285e-05,2]
[422799558,1779413441000,-546.58046399,8.285e-05,2]
[422799545,1779413441000,-202.50605818,8.285e-05,2]
[422799535,1779413441000,-500.0,8.285e-05,2]
[422799604,1779413441000,-500.0,8.285e-05,2]
[422799571,1779413441000,-500.0,8.285e-05,2]
[422799592,1779413441000,-500.0,8.285e-05,2]
[422799633,1779413441000,-500.0,8.285e-05,2]
[422799635,1779413441000,-500.0,8.285e-05,2]
[422799640,1779413441000,-438.2251422,8.286e-05,2]
[422799641,1779413441000,-500.0,8.286e-05,2]
[422799634,1779413441000,-500.0,8.285e-05,2]
[422799644,1779413441000,-500.0,8.286e-05,2]
[422799636,1779413441000,-500.0,8.285e-05,2]
[422799637,1779413441000,-500.0,8.285e-05,2]
[422799642,1779413441000,-573.6,8.286e-05,2]